bitfinex/quotes_ETHUSD_20230903
["timestamp","ask_amount","ask_price","bid_price","bid_amount"]
[1693750219481,5.03021669,1636.3,1636.2,3.46091281]
[1693750220234,5.99047812,1636.3,1636.2,3.46091281]
[1693750220721,5.03021669,1636.3,1636.2,3.08185404]
[1693750220927,5.99047812,1636.3,1636.1,0.7087337]
[1693750221101,3.59523571,1636.3,1636.1,3.08185404]
[1693750222304,1.9948,1636.3,1636.1,3.08185404]
[1693750222509,1.70228293,1636.2,1636.1,3.08185404]
[1693750224047,1.06193262,1636.2,1636.1,3.08185404]
[1693750224351,1.70228386,1636.2,1636.1,3.08185404]
[1693750224533,3.59567272,1636.3,1636.1,3.08185404]
[1693750226786,3.59567272,1636.3,1636.1,1.47985404]
[1693750227567,2.63514909,1636.3,1636.1,1.47985404]
[1693750230842,1.9948,1636.3,1636.1,1.47985404]
[1693750232962,1.9948,1636.3,1636.1,3.03985404]
[1693750233172,2.99471636,1636.3,1636.1,3.03985404]
[1693750234029,2.63514909,1636.3,1636.1,3.03985404]
[1693750235566,1.9948,1636.3,1636.1,3.03985404]
[1693750239451,1.9448,1636.3,1636.1,3.03985404]
[1693750242649,2.58514909,1636.3,1636.1,3.03985404]
[1693750251415,3.54567272,1636.3,1636.1,3.03985404]
[1693750252115,2.58514909,1636.3,1636.1,3.03985404]
[1693750252475,3.54567272,1636.3,1636.1,3.03985404]
[1693750253612,1.70220882,1636.2,1636.1,3.03985404]
[1693750253812,1.06185973,1636.2,1636.1,2.02838774]
[1693750254002,1.70220882,1636.2,1636.1,2.02838774]
[1693750255439,2.58514909,1636.3,1636.1,2.02838774]
[1693750255583,3.54567272,1636.3,1636.1,1.47985404]
[1693750259919,1.06183762,1636.2,1636.1,1.47985404]
[1693750260087,3.54567272,1636.3,1636.1,1.47985404]
[1693750266144,3.49567272,1636.3,1636.1,1.47985404]
[1693750267214,3.49567272,1636.3,1636.1,2.02838774]
[1693750268173,2.53514909,1636.3,1636.1,2.02838774]
[1693750268451,3.49567272,1636.3,1636.1,2.02838774]
[1693750268652,2.53514909,1636.3,1636.1,2.02838774]
[1693750269354,3.49567272,1636.3,1636.1,2.02838774]
[1693750269517,2.53514909,1636.3,1636.1,2.02838774]
[1693750271161,3.49567272,1636.3,1636.1,2.02838774]
[1693750271657,2.53514909,1636.3,1636.1,2.02838774]
[1693750274439,3.49567272,1636.3,1636.1,2.02838774]
[1693750274773,2.53514909,1636.3,1636.1,2.02838774]
[1693750275275,3.49567272,1636.3,1636.1,2.02838774]
[1693750276938,2.53514909,1636.3,1636.1,2.02838774]
[1693750278190,3.49567272,1636.3,1636.1,2.02838774]
[1693750278578,2.53514909,1636.3,1636.1,2.02838774]
[1693750279081,3.49567272,1636.3,1636.1,2.02838774]
[1693750281219,1.28069818,1636.4,1636.2,4.64185404]
[1693750281220,0.64034909,1636.4,1636.2,4.64185404]
[1693750281427,0.64034909,1636.6,1636.3,5.5041854]
[1693750281567,1.70195117,1636.6,1636.4,3.08185404]
[1693750281774,5.020097,1636.6,1636.4,3.08185404]
[1693750281987,2.62234909,1636.6,1636.4,3.08185404]
[1693750282914,1.982,1636.6,1636.4,3.08185404]
[1693750283772,1.982,1636.6,1636.4,4.64185404]
[1693750289621,0.64541615,1636.7,1636.4,5.40603944]
[1693750289930,0.00506706,1636.7,1636.5,1.56]
[1693750290109,1.88256706,1636.7,1636.5,4.64185404]
[1693750290980,1.88256706,1636.7,1636.5,7.08666804]
[1693750298276,1.88256706,1636.7,1636.5,2.444814]
[1693750298831,1.88256706,1636.7,1636.4,1.56]
[1693750299127,1.88256706,1636.7,1636.4,4.64185404]
[1693750299315,1.88256706,1636.7,1636.4,7.08683704]
[1693750301592,2.52291615,1636.7,1636.4,7.08683704]
[1693750301793,1.88256706,1636.7,1636.4,7.08683704]
[1693750302104,2.52291615,1636.7,1636.4,7.08683704]
[1693750302538,1.88256706,1636.7,1636.4,7.08683704]
[1693750302695,2.52291615,1636.7,1636.4,7.08683704]
[1693750307628,2.52291615,1636.7,1636.4,2.444983]
[1693750307629,3.07972013,1636.7,1636.4,2.444983]
[1693750307835,2.98300097,1636.6,1636.0,1.56]
[1693750308137,0.64034909,1636.5,1636.1,3.08185404]
[1693750308337,0.64034909,1636.5,1635.9,3.95123042]
[1693750308338,5.83449357,1636.5,1635.9,3.95123042]
[1693750308501,4.77280155,1636.5,1636.0,3.08185404]
[1693750309205,4.77280155,1636.5,1636.0,5.52738304]
[1693750314821,3.94416069,1636.4,1636.0,2.445529]
[1693750315021,0.39441607,1636.3,1635.9,3.48833042]
[1693750315249,1.9788,1636.3,1635.9,3.57018446]
[1693750315455,1.9788,1636.3,1635.9,0.48833042]
[1693750315666,1.9788,1636.3,1635.8,4.56]
[1693750315968,3.889,1636.3,1635.8,7.64185404]
[1693750316129,3.889,1636.3,1635.8,8.11901474]
[1693750316322,4.34193491,1636.3,1635.8,8.11901474]
[1693750322366,5.94280763,1636.3,1635.8,3.55901474]
[1693750322673,4.982284,1636.3,1635.8,3.55901474]
[1693750323366,4.982284,1636.3,1635.5,2.29087001]
[1693750323367,1.56,1636.1,1635.5,2.29087001]
[1693750323573,1.9712,1636.0,1635.6,3.08185404]
[1693750323872,2.32432,1636.0,1635.6,3.08185404]
[1693750327055,2.32432,1636.0,1635.5,7.02404669]
[1693750327247,2.32432,1636.0,1635.6,3.0]
[1693750334661,2.32432,1636.0,1635.5,2.46404669]
[1693750336473,2.32432,1636.0,1635.5,0.49284669]
[1693750336781,2.32432,1636.0,1635.3,5.103]
[1693750336984,1.8404,1635.9,1635.4,1.56]
[1693750337390,1.8457,1635.8,1635.4,1.56]
[1693750338679,2.21431,1635.8,1635.4,1.56]
[1693750340277,2.21431,1635.8,1635.4,1.51]
[1693750341189,2.21431,1635.8,1635.5,1.56]
[1693750341892,2.21431,1635.8,1635.4,1.56]
[1693750352027,0.35312,1636.0,1635.6,1.56]
[1693750352215,2.32162,1636.0,1635.6,1.56]
[1693750352421,2.32162,1636.0,1635.7,1.56]
[1693750355705,2.96196909,1636.0,1635.6,1.56]
[1693750356297,1.9516,1635.9,1635.6,1.56]
[1693750356533,1.9516,1635.9,1635.5,3.4101]
[1693750358855,2.59194909,1635.9,1635.5,3.4101]
[1693750359421,1.9203,1635.8,1635.5,3.4101]
[1693750360056,2.36953491,1635.8,1635.5,3.4101]
[1693750373895,2.36953491,1635.8,1635.5,3.89999178]
[1693750377097,2.36953491,1635.8,1635.5,4.53970485]
[1693750377603,2.36953491,1635.8,1635.5,3.89999178]
[1693750377760,2.36953491,1635.8,1635.5,4.53970485]
[1693750378361,2.36953491,1635.8,1635.5,3.89999178]
[1693750378600,2.36953491,1635.8,1635.5,4.53970485]
[1693750378795,3.009884,1635.8,1635.5,4.53970485]
[1693750384101,1.60087272,1635.9,1635.5,7.62155889]
[1693750384265,3.94748519,1635.9,1635.6,1.56]
[1693750384461,0.64034909,1635.9,1635.6,1.56]
[1693750384906,2.98694585,1635.9,1635.6,1.56]
[1693750385399,2.98694585,1635.9,1635.5,7.62155889]
[1693750385705,2.98694585,1635.9,1635.5,8.76751435]
[1693750387669,2.98694585,1635.9,1635.5,8.76935682]
[1693750387670,0.64194178,1635.9,1635.5,8.76935682]
[1693750388093,2.98846288,1635.9,1635.5,8.76935682]
[1693750388402,0.64194178,1635.9,1635.5,8.76935682]
[1693750388801,2.98845094,1635.9,1635.5,8.76935682]
[1693750388998,2.52954178,1635.9,1635.5,8.76935682]
[1693750389212,3.49245445,1635.9,1635.5,8.76935682]
[1693750390689,2.52954178,1635.9,1635.5,8.76935682]
[1693750398034,2.52954178,1635.9,1635.6,1.56]
[1693750403138,2.52954178,1635.9,1635.5,7.62340136]
[1693750403443,2.033,1635.8,1635.5,2.98154732]
[1693750403602,2.67494178,1635.8,1635.5,1.13144732]
[1693750403801,2.67494178,1635.8,1635.5,0.48989178]
[1693750404117,2.67494178,1635.8,1635.5,0.64155554]
[1693750404508,2.67494178,1635.8,1635.4,3.16388886]
[1693750404713,2.0308,1635.7,1635.4,6.2457429]
[1693750405735,2.0308,1635.7,1635.5,0.64155554]
[1693750409143,2.0308,1635.7,1635.4,6.2457429]
[1693750410446,2.0308,1635.7,1635.4,5.28340958]
[1693750412050,2.0308,1635.7,1635.4,2.20155554]
[1693750412264,2.67274178,1635.7,1635.3,3.653505]
[1693750412555,3.23754114,1635.7,1635.3,2.69117168]
[1693750412736,1.9519,1635.6,1635.3,2.69117168]
[1693750413106,1.9519,1635.6,1635.3,3.653505]
[1693750413558,1.9519,1635.6,1635.3,2.69117168]
[1693750413747,1.9519,1635.6,1635.3,3.653505]
[1693750414153,1.9519,1635.6,1635.3,2.69117168]
[1693750416350,1.20674114,1635.7,1635.3,1.13117168]
[1693750416767,1.9564,1635.6,1635.3,1.13117168]
[1693750417257,2.27271411,1635.6,1635.3,1.13117168]
[1693750417458,2.27271411,1635.6,1635.3,2.69117168]
[1693750418799,2.27271411,1635.6,1635.3,2.04961614]
[1693750429904,1.9564,1635.6,1635.3,2.04961614]
[1693750430463,1.9564,1635.6,1635.3,2.69117168]
[1693750432754,1.9064,1635.6,1635.3,2.69117168]
[1693750440769,1.9064,1635.6,1635.3,2.04961614]
[1693750441869,1.9064,1635.6,1635.3,2.69117168]
[1693750442073,1.9064,1635.6,1635.3,2.04961614]
[1693750442267,1.9064,1635.6,1635.3,3.78584398]
[1693750442450,1.9064,1635.6,1635.3,3.14428844]
[1693750442652,1.9064,1635.6,1635.3,3.78584398]
[1693750451387,1.9064,1635.6,1635.3,3.78565248]
[1693750454621,1.9064,1635.6,1635.3,3.78583549]
[1693750455628,1.9064,1635.6,1635.3,4.74815607]
[1693750457830,1.9064,1635.6,1635.3,4.74851504]
[1693750461101,1.9064,1635.6,1635.3,3.78597908]
[1693750461739,0.37172931,1635.5,1635.3,3.78597908]
[1693750464736,0.37172931,1635.5,1635.3,4.74851504]
[1693750465239,1.9064,1635.6,1635.3,4.74851504]
[1693750465540,0.37679866,1635.4,1635.3,4.74851504]
[1693750465931,1.9064,1635.6,1635.3,4.74851504]
[1693750466234,0.37679866,1635.4,1635.3,2.69130678]
[1693750466607,1.9064,1635.6,1635.3,2.69130678]
[1693750470824,1.9064,1635.6,1635.3,2.69141517]
[1693750472524,2.5484986,1635.6,1635.3,2.69141517]
[1693750474741,1.9064,1635.6,1635.3,2.69141517]
[1693750483977,2.5484986,1635.6,1635.3,2.69141517]
[1693750484187,1.70440236,1635.5,1635.3,0.48961614]
[1693750484477,1.98213596,1635.5,1635.1,0.64179903]
[1693750484689,1.60524651,1635.4,1635.0,2.20179903]
[1693750484853,0.6420986,1635.4,1635.0,4.64185404]
[1693750485266,0.6420986,1635.4,1635.0,2.04401798]
[1693750485267,3.18316237,1635.4,1635.0,2.04401798]
[1693750485476,1.41413829,1635.4,1635.0,2.04401798]
[1693750486981,1.41413829,1635.4,1635.0,0.48401798]
[1693750487173,1.41413829,1635.4,1634.9,7.50072677]
[1693750487349,3.37673829,1635.4,1635.0,1.56]
[1693750489683,2.73463969,1635.4,1635.0,1.56]
[1693750492981,2.73463969,1635.4,1634.9,9.52991475]
[1693750495312,0.38927291,1635.3,1634.9,4.49316071]
[1693750495479,0.70166417,1635.3,1634.9,2.04603071]
[1693750495812,0.31239126,1635.3,1634.9,5.04603071]
[1693750500326,1.9626,1635.4,1635.0,1.56]
[1693750503929,1.95641116,1635.6,1635.1,1.56]
[1693750504139,4.4900986,1635.6,1635.1,1.56]
[1693750504432,4.4900986,1635.6,1635.3,1.56]
[1693750504433,0.6420986,1635.6,1635.3,1.56]
[1693750504631,1.70444703,1635.6,1635.3,1.56]
[1693750505225,0.63988106,1635.6,1635.3,1.56]
[1693750505551,2.56928106,1635.7,1635.4,1.56]
[1693750507951,0.63988106,1635.7,1635.4,1.56]
[1693750508149,2.87842159,1635.8,1635.6,1.56]
[1693750508150,0.63988106,1635.8,1635.6,1.56]
[1693750508320,3.17681442,1635.8,1635.6,1.56]
[1693750508659,0.63988106,1635.8,1635.6,1.56]
[1693750508879,3.17681876,1635.8,1635.6,1.56]
[1693750509717,3.17681876,1635.8,1635.6,2.0241854]
[1693750511123,0.63988106,1635.8,1635.6,2.0241854]
[1693750519167,5.36940265,1636.0,1635.7,1.56]
[1693750519352,5.36940265,1636.0,1635.8,1.56]
[1693750519560,4.40958106,1636.0,1635.8,1.56]
[1693750519747,2.60908106,1636.0,1635.8,1.56]
[1693750527186,0.63988106,1636.1,1635.9,1.56]
[1693750527698,3.17667525,1636.1,1635.9,1.56]
[1693750528054,0.63988106,1636.1,1635.9,1.56]
[1693750528384,4.86802159,1636.2,1635.9,4.64185404]
[1693750528385,0.63988106,1636.2,1635.9,4.64185404]
[1693750528584,0.63988106,1636.2,1636.0,2.0241854]
[1693750528585,1.70186166,1636.2,1636.0,2.0241854]
[1693750528791,1.54970265,1636.3,1636.0,2.0241854]
[1693750528991,4.08613742,1636.3,1636.0,2.0241854]
[1693750529161,1.54970265,1636.3,1636.0,2.0241854]
[1693750529569,4.08613168,1636.3,1636.0,2.0241854]
[1693750529883,0.63988106,1636.3,1636.0,2.0241854]
[1693750530054,0.63988106,1636.3,1636.1,3.08185404]
[1693750530055,1.70183711,1636.3,1636.1,3.08185404]
[1693750530254,1.70183711,1636.3,1636.1,3.59245798]
[1693750532591,1.70183711,1636.3,1636.2,0.25874764]
[1693750534391,2.65858106,1636.4,1636.2,0.25874764]
[1693750534892,2.65858106,1636.4,1636.1,3.59245798]
[1693750535092,2.65858106,1636.4,1636.2,0.3592458]
[1693750535309,2.65858106,1636.4,1636.2,0.61636004]
[1693750535604,2.65858106,1636.4,1636.2,0.3592458]
[1693750537718,2.60858106,1636.4,1636.2,0.3592458]
[1693750538717,3.56696968,1636.4,1636.2,0.3592458]
[1693750538913,2.60858106,1636.4,1636.2,0.3592458]
[1693750539781,3.56696968,1636.4,1636.2,0.3592458]
[1693750541611,2.60858106,1636.4,1636.2,0.3592458]
[1693750541816,3.56696968,1636.4,1636.2,0.3592458]
[1693750542792,3.51696968,1636.4,1636.2,0.3592458]
[1693750543721,1.70180321,1636.3,1636.2,0.3592458]
[1693750544021,0.63988106,1636.4,1636.3,0.25707155]
[1693750544223,0.95838862,1636.5,1636.3,1.81707155]
[1693750544224,1.59826968,1636.5,1636.3,1.81707155]
[1693750544423,4.13189212,1636.5,1636.3,2.34288869]
[1693750544719,1.70172537,1636.4,1636.3,2.34288869]
[1693750544884,0.63988106,1636.4,1636.3,2.34288869]
[1693750545291,0.63988106,1636.4,1636.3,0.78288869]
[1693750545589,2.11179611,1636.4,1636.3,0.78288869]
[1693750546695,2.11129153,1636.4,1636.3,0.78288869]
[1693750546897,1.70104216,1636.4,1636.3,0.78288869]
[1693750547096,3.17306487,1636.4,1636.3,0.78288869]
[1693750547296,0.63918372,1636.4,1636.3,0.78288869]
[1693750547497,2.11120643,1636.4,1636.3,0.78288869]
[1693750547727,0.63918372,1636.4,1636.3,0.78288869]
[1693750547886,2.11120643,1636.4,1636.3,0.78288869]
[1693750548220,1.70104216,1636.4,1636.3,0.78288869]
[1693750548388,3.17329476,1636.4,1636.3,0.78288869]
[1693750548590,2.11143632,1636.4,1636.3,0.78288869]
[1693750550518,0.63918372,1636.4,1636.3,0.78288869]
[1693750550728,3.17367934,1636.4,1636.3,0.78288869]
[1693750551033,2.1118209,1636.4,1636.3,0.78288869]
[1693750552728,1.70104216,1636.4,1636.3,0.78288869]
[1693750552901,3.17376261,1636.4,1636.3,0.78288869]
[1693750553317,2.11190417,1636.4,1636.3,0.78288869]
[1693750555820,0.63918372,1636.4,1636.3,0.78288869]
[1693750556029,2.11212623,1636.4,1636.3,0.78288869]
[1693750556532,3.17429843,1636.4,1636.3,0.78288869]
[1693750556726,0.63953518,1636.4,1636.3,0.78288869]
[1693750556931,1.70135845,1636.4,1636.3,0.78288869]
[1693750557228,0.63953518,1636.4,1636.3,0.78288869]
[1693750557395,0.63953518,1636.6,1636.3,5.42474273]
[1693750557591,0.63953518,1636.6,1636.4,0.54247427]
[1693750557810,3.17418737,1636.6,1636.4,0.54247427]
[1693750558117,0.63953518,1636.6,1636.5,0.25694076]
[1693750558431,2.11241059,1636.6,1636.5,0.25694076]
[1693750558632,3.17411387,1636.6,1636.5,0.25694076]
[1693750558965,1.70123846,1636.6,1636.4,0.54247427]
[1693750559244,1.70123846,1636.6,1636.5,0.25694076]
[1693750559446,3.10497998,1636.6,1636.5,0.25694076]
[1693750559748,3.10497998,1636.6,1636.4,0.54247427]
[1693750559948,0.63953518,1636.6,1636.4,0.54247427]
[1693750560133,0.63953518,1636.6,1636.5,0.25694076]
[1693750560444,3.10505313,1636.6,1636.3,8.20805404]
[1693750560751,1.701301,1636.5,1636.3,6.57715404]
[1693750560946,0.63953518,1636.5,1636.4,0.25698445]
[1693750561459,0.63953518,1636.5,1636.3,5.33549402]
[1693750561809,0.63953518,1636.5,1636.4,0.25698445]
[1693750563615,0.63953518,1636.5,1636.3,5.33549402]
[1693750563917,0.63953518,1636.5,1636.4,0.25698445]
[1693750564445,0.63953518,1636.5,1636.3,5.33549402]
[1693750565066,0.63953518,1636.5,1636.4,0.25698445]
[1693750565390,0.63953518,1636.5,1636.3,5.33549402]
[1693750565768,0.63953518,1636.5,1636.4,0.25698445]
[1693750566178,0.63953518,1636.5,1636.3,5.33549402]
[1693750566753,0.63953518,1636.5,1636.4,0.25698445]
[1693750567089,0.63953518,1636.5,1636.3,5.33549402]
[1693750567456,0.63953518,1636.5,1636.4,0.25698445]
[1693750567991,1.59883795,1636.5,1636.4,0.25698445]
[1693750568691,1.59883795,1636.5,1636.1,5.05611758]
[1693750568890,3.64649557,1636.4,1636.2,3.08185404]
[1693750569118,2.58473518,1636.4,1636.2,3.08185404]
[1693750570016,2.58473518,1636.4,1636.3,0.25702814]
[1693750570218,3.64653124,1636.4,1636.3,0.25702814]
[1693750570520,1.70133124,1636.4,1636.3,0.25702814]
[1693750570821,0.63953518,1636.4,1636.3,0.25702814]
[1693750571317,1.70133124,1636.4,1636.3,0.25702814]
[1693750571823,3.10726108,1636.4,1636.3,0.25702814]
[1693750572916,3.10726108,1636.4,1636.3,0.59091636]
[1693750573419,3.10759128,1636.4,1636.3,0.59091636]
[1693750573620,1.70133124,1636.4,1636.3,0.59091636]
[1693750579396,1.70133124,1636.4,1636.3,0.25702814]
[1693750583137,3.58353795,1636.5,1636.3,0.25702814]
[1693750583338,2.62423518,1636.5,1636.3,0.25702814]
[1693750584248,3.58353795,1636.5,1636.3,0.25702814]
[1693750587547,1.06174382,1636.4,1636.3,0.25702814]
[1693750587786,3.58353795,1636.5,1636.3,0.25702814]
[1693750588958,1.70128417,1636.4,1636.3,0.25702814]
[1693750593662,3.10907399,1636.4,1636.3,0.25702814]
[1693750594766,3.10921883,1636.4,1636.3,0.25702814]
[1693750595741,1.6607388,1636.4,1636.3,0.25702814]
[1693750598183,3.06800642,1636.4,1636.3,0.25702814]
[1693750600578,1.6607388,1636.4,1636.3,0.25702814]
[1693750601267,3.06824329,1636.4,1636.3,0.25702814]
[1693750601683,1.6607388,1636.4,1636.3,0.25702814]
[1693750601987,3.0683433,1636.4,1636.3,0.25702814]
[1693750602577,1.6607388,1636.4,1636.3,0.25702814]
[1693750603092,3.06845135,1636.4,1636.3,0.25702814]
[1693750605283,1.6607388,1636.4,1636.3,0.25702814]
[1693750605482,3.06847155,1636.4,1636.3,0.25702814]
[1693750616899,1.6607388,1636.4,1636.3,0.25702814]
[1693750618299,3.06861702,1636.4,1636.3,0.25702814]
[1693750619367,1.6607388,1636.4,1636.3,0.25702814]
[1693750621499,3.06868227,1636.4,1636.3,0.25702814]
[1693750625329,1.6607388,1636.4,1636.3,0.25702814]
[1693750627505,3.58353795,1636.5,1636.3,0.25702814]
[1693750627708,1.70123354,1636.4,1636.3,0.25702814]
[1693750628003,1.06169836,1636.4,1636.3,0.25702814]
[1693750628173,3.58353795,1636.5,1636.3,0.25702814]
[1693750628367,2.62423518,1636.5,1636.3,0.25702814]
[1693750658027,2.62423518,1636.5,1636.4,1.56]
[1693750658223,0.63953518,1636.5,1636.4,1.56]
[1693750658653,0.63953518,1636.5,1636.4,1.81704686]
[1693750658859,3.10857724,1636.5,1636.4,1.81704686]
[1693750661282,3.11080649,1636.5,1636.4,1.81704686]
[1693750663164,3.11080649,1636.5,1636.4,0.25704686]
[1693750681181,1.70323862,1636.5,1636.4,0.25704686]
[1693750681681,3.11113099,1636.5,1636.4,0.25704686]
[1693750683699,1.70323862,1636.5,1636.4,0.25704686]
[1693750684712,0.641569,1636.6,1636.4,1.81704686]
[1693750684920,3.11106511,1636.6,1636.4,1.81704686]
[1693750685621,3.11106511,1636.6,1636.4,1.56]
[1693750686696,1.70317172,1636.6,1636.4,1.56]
[1693750686897,0.641569,1636.6,1636.5,0.25694076]
[1693750687087,1.70316795,1636.6,1636.5,0.25694076]
[1693750688388,1.06159895,1636.6,1636.5,0.25694076]
[1693750688816,1.70316795,1636.6,1636.5,0.25694076]
[1693750689436,5.32318957,1636.7,1636.5,0.25694076]
[1693750689597,3.44028957,1636.7,1636.5,0.25694076]
[1693750689796,3.44028957,1636.7,1636.4,1.56]
[1693750690031,3.44028957,1636.7,1636.6,0.25695949]
[1693750690332,4.07780737,1636.7,1636.6,0.25695949]
[1693750690505,4.07780737,1636.7,1636.4,1.56]
[1693750690705,1.70315725,1636.6,1636.4,1.56]
[1693750690903,0.641569,1636.6,1636.4,1.87085]
[1693750691104,1.70316724,1636.6,1636.4,1.87085]
[1693750692328,0.00506706,1636.7,1636.5,6.68185404]
[1693750692625,0.00506706,1636.7,1636.6,1.56]
[1693750692838,0.00506706,1636.7,1636.6,5.79003944]
[1693750705004,0.00506706,1636.7,1636.6,6.04560127]
[1693750720549,0.00506706,1636.7,1636.6,12.48460127]
[1693750720696,0.00506706,1636.7,1636.6,9.04560127]
[1693750723277,0.00506706,1636.7,1636.6,7.89741587]
[1693750724786,0.00506706,1636.7,1636.6,8.37741587]
[1693750736414,0.00506706,1636.7,1636.6,9.01908159]
[1693750736579,0.00506706,1636.7,1636.6,8.37741587]
[1693750737285,0.00506706,1636.7,1636.6,9.01908159]
[1693750737526,0.00506706,1636.7,1636.6,10.30943553]
[1693750768379,0.00506706,1636.7,1636.6,11.27193411]
[1693750771380,0.00506706,1636.7,1636.6,10.63026839]
[1693750771882,0.00506706,1636.7,1636.6,11.91359983]
[1693750774621,0.00506706,1636.7,1636.6,10.63026839]
[1693750780920,0.00506706,1636.7,1636.6,11.27117709]
[1693750782539,0.00506706,1636.7,1636.6,10.63026839]
[1693750783202,0.00506706,1636.7,1636.6,11.91359983]
[1693750783839,0.00506706,1636.7,1636.6,10.63026839]
[1693750790925,0.00506706,1636.7,1636.6,6.97829691]
[1693750791274,0.00506706,1636.7,1636.6,0.25556183]
[1693750800959,0.00506706,1636.7,1636.6,3.33741587]
[1693750801167,0.00506706,1636.7,1636.6,4.89741587]
[1693750802088,0.00506706,1636.7,1636.6,5.37741587]
[1693750802274,0.00506706,1636.7,1636.6,6.02705198]
[1693750810618,0.101,1636.8,1636.6,5.37741587]
[1693750810907,0.09371,1636.8,1636.6,3.81741587]
[1693750811415,2.08901,1636.8,1636.6,3.81741587]
[1693750813393,2.08901,1636.8,1636.6,0.25556183]
[1693750832742,2.08901,1636.8,1636.6,0.49046406]
[1693750833749,0.09371,1636.8,1636.6,5.1323181]
[1693750833953,0.09371,1636.8,1636.7,0.51323181]
[1693750834185,0.09371,1636.8,1636.6,5.1323181]
[1693750834389,0.09371,1636.8,1636.6,4.89741587]
[1693750840411,0.09371,1636.8,1636.6,5.13227589]
[1693750853976,0.09371,1636.8,1636.7,7.64185404]
[1693750854176,0.09371,1636.8,1636.7,8.76286348]
[1693750854383,0.09371,1636.8,1636.7,9.78434343]
[1693750855054,0.09371,1636.8,1636.7,10.27476529]
[1693750863696,1.8351496,1637.0,1636.7,10.27476529]
[1693750863997,1.8351496,1637.0,1636.8,1.56]
[1693750864297,1.8351496,1637.0,1636.8,4.64185404]
[1693750864486,1.8351496,1637.0,1636.8,5.66933057]
[1693750870107,1.8351496,1637.0,1636.9,0.49030333]
[1693750870470,0.0041496,1637.0,1636.8,5.66933057]
[1693750870667,1.9372496,1637.0,1636.9,1.56]
[1693750870969,0.0041496,1637.0,1636.9,1.56]
[1693750879411,0.0041496,1637.0,1636.8,3.08185404]
[1693750879999,0.0041496,1637.0,1636.7,4.97953117]
[1693750880178,0.0041496,1637.0,1636.7,7.58138521]
[1693750882132,1.9644496,1637.0,1636.7,7.58138521]
[1693750884506,1.9644496,1637.0,1636.7,9.14138521]
[1693750885330,1.9644496,1637.0,1636.8,0.47504455]
[1693750902097,1.9644496,1637.0,1636.8,2.03504455]
[1693750903712,0.0041496,1637.0,1636.8,2.03504455]
[1693750903919,0.0041496,1637.0,1636.8,6.23879393]
[1693750911401,0.0041496,1637.0,1636.9,1.56]
[1693750911900,0.0041496,1637.0,1636.9,2.03499499]
[1693750938144,0.0041496,1637.0,1636.9,0.47499499]
[1693750938809,0.0041496,1637.0,1636.8,5.28310786]
[1693750939012,0.0041496,1637.0,1636.9,0.47366848]
[1693750939448,0.0041496,1637.0,1636.8,5.28310786]
[1693750939648,0.0041496,1637.0,1636.8,6.70976984]
[1693750944804,0.0041496,1637.0,1636.8,6.06851602]
[1693750945142,0.0041496,1637.0,1636.9,0.47366848]
[1693750945703,0.0041496,1637.0,1636.8,6.71006423]
[1693750947007,0.0041496,1637.0,1636.8,6.71004648]
[1693750947519,0.0041496,1637.0,1636.8,5.15004648]
[1693750960156,0.0041496,1637.0,1636.9,0.47366848]
[1693750960414,0.0041496,1637.0,1636.8,3.7233845]
[1693750960622,0.0041496,1637.0,1636.8,5.04796764]
[1693750975167,0.0041496,1637.0,1636.9,0.47366848]
[1693750975449,0.0041496,1637.0,1636.8,5.04796764]
[1693750983413,0.0041496,1637.0,1636.8,3.7233845]
[1693750983617,0.0041496,1637.0,1636.8,3.08185404]
[1693750990242,0.0041496,1637.0,1636.9,0.47366848]
[1693750990546,0.0041496,1637.0,1636.8,3.08185404]
[1693751005302,0.0041496,1637.0,1636.9,0.47366848]
[1693751005604,0.0041496,1637.0,1636.8,3.08185404]
[1693751005906,0.0041496,1637.0,1636.8,4.15947761]
[1693751010560,0.0041496,1637.0,1636.8,4.80021526]
[1693751010729,0.0041496,1637.0,1636.8,4.15947761]
[1693751011142,0.0041496,1637.0,1636.8,4.80021526]
[1693751012459,0.0041496,1637.0,1636.8,4.80021206]
[1693751013263,0.0041496,1637.0,1636.8,4.15947761]
[1693751014738,0.0041496,1637.0,1636.8,3.08185404]
[1693751016846,0.0041496,1637.0,1636.7,5.67878567]
[1693751017051,1.9084496,1637.0,1636.7,4.11878567]
[1693751018490,0.0041496,1637.0,1636.7,1.11878567]
[1693751018660,1.60768985,1637.0,1636.7,0.47805122]
[1693751018989,3.88038883,1637.0,1636.6,0.64073445]
[1693751019794,1.9309,1636.9,1636.6,0.64073445]
[1693751019947,1.9309,1636.9,1636.6,3.64073445]
[1693751020388,1.9309,1636.9,1636.7,0.47235524]
[1693751020587,2.31893888,1636.9,1636.7,0.47235524]
[1693751040723,1.9309,1636.9,1636.7,0.47235524]
[1693751047747,0.98736468,1637.0,1636.7,0.47235524]
[1693751048048,2.93326468,1637.0,1636.7,0.47235524]
[1693751056146,3.21419811,1636.9,1636.7,0.47235524]
[1693751056443,5.07984025,1636.9,1636.5,4.1189452]
[1693751056635,2.42428403,1636.8,1636.5,1.1189452]
[1693751062709,3.06570013,1636.8,1636.5,1.1189452]
[1693751065113,3.06570013,1636.8,1636.6,0.45751922]
[1693751065314,3.246298,1636.7,1636.6,0.45751922]
[1693751065512,4.32292989,1636.7,1636.6,0.45751922]
[1693751065947,4.32292989,1636.7,1636.5,0.641569]
[1693751066241,1.70257257,1636.6,1636.2,0.6112]
[1693751066446,3.65397257,1636.6,1636.2,0.6112]
[1693751066666,2.59242154,1636.6,1636.2,0.6112]
[1693751066876,1.9514,1636.5,1636.2,0.6112]
[1693751067753,1.9514,1636.5,1636.1,3.6813]
[1693751067956,1.9514,1636.5,1636.1,6.76315404]
[1693751068558,1.9514,1636.5,1636.1,7.24901924]
[1693751069146,1.9514,1636.5,1636.1,8.80901924]
[1693751072394,1.9514,1636.5,1636.1,9.98992116]
[1693751079489,1.9514,1636.5,1636.1,4.0777652]
[1693751080166,1.9514,1636.5,1636.2,0.44348344]
[1693751083687,2.62702384,1636.7,1636.3,1.56]
[1693751083886,1.9516,1636.6,1636.3,1.56]
[1693751087470,0.64102154,1636.8,1636.3,1.56]
[1693751087671,1.997,1636.7,1636.3,1.56]
[1693751095298,1.997,1636.7,1636.4,0.44336485]
[1693751096598,2.63802154,1636.7,1636.4,0.44336485]
[1693751096812,3.19266611,1636.7,1636.4,0.44336485]
[1693751104229,3.14266611,1636.7,1636.4,0.44336485]
[1693751105742,4.10479026,1636.7,1636.4,0.44336485]
[1693751106430,3.55014569,1636.7,1636.4,0.44336485]
[1693751107536,1.06157918,1636.6,1636.4,0.44336485]
[1693751108455,3.55014569,1636.7,1636.4,0.44336485]
[1693751108649,1.70260041,1636.6,1636.4,0.44336485]
[1693751110548,3.25712084,1636.6,1636.4,0.44336485]
[1693751110757,3.25712084,1636.6,1636.4,0.88603895]